Cogmind - Beta 16 @@@ ROGUE MODE // 2026.01.06 @ 21:25:56 Player: PE-P51 Result: Core destroyed Performance ------------- Evolutions (1) 500 Regions Visited (6) 1200 Robots Destroyed (108) 540 Value Destroyed (2723) 2723 Prototype IDs (20) 400 Alien Tech Used (0) 0 Bonus (1038) 1038 TOTAL SCORE: 6401 Bonus ------- High Alert Combat Kills 109 Follower Combat Kills 231 Registered with UFD 300 Met Optimus in HQ 500 Friendly Fire -102 Cogmind --------- Core Integrity 0/400 Matter 65/300 Energy 159/170 System Corruption 0% Temperature Hot (218) Movement Rolling (175) Ox5 Location -9/Scraptown Parts ------- > --- POWER (1) -------- Mini Fusion Reactor > --- PROPULSION (2) --- Compact Wheel > --- UTILITY (3) ------ Huge Storage Unit Weight Redist. System Hardened Light Armor Plating > --- WEAPON (3) ------- Siege Cannon > --- INVENTORY (25) --- Improved Ion Engine Cooled Ion Engine Light Treads Light Treads Tri-treads Armored Wheel Experimental Heat Sink Siege Articulator Advanced Targeting Computer Microactuators Medium Armor Plating Hardened Light Armor Plating Hacking Suite KN-7UR's Autopenetrator Advanced Beam Cannon Advanced Beam Cannon Magnetic Acceleration Cannon Heavy Missile Launcher Plasma Cutter CPS Tube (2) CPS Tube (2) CPS Tube (2) Companion Sword Peak State ------------ > --- POWER ------------ Mini Fusion Reactor > --- PROPULSION ------- Light Treads Improved Treads > --- UTILITY ---------- Experimental Heat Sink Huge Storage Unit Hardened Light Armor Plating > --- WEAPON ----------- Improved Lightning Gun KN-7UR's Autopenetrator Advanced Beam Cannon > --- INVENTORY -------- Improved Ion Engine Cooled Ion Engine Light Treads Light Treads Light Treads Light Treads Light Treads Light Treads Light Treads Light Treads Light Treads Wheel Improved Heat Sink Light Armor Plating Medium Armor Plating Hardened Light Armor Plating Hardened Light Armor Plating Hacking Suite Medium Laser Advanced Beam Cannon Improved Assault Rifle Improved Assault Rifle EMP Blaster Mini Grenade Launcher Shock Maul [Rating: 42] Favorites ----------- Power Mini Fusion Reactor Engine Heavy Ion Engine Reactor Mini Fusion Reactor Propulsion Improved Treads Treads Improved Treads Leg Aluminum Leg Wheel Wheel Utility Huge Storage Unit Device Improved Heat Sink Storage Huge Storage Unit Processor Visual Processing Unit Protection Hardened Light Armor Plating Weapon Advanced Beam Cannon Energy Gun Improved Lightning Gun Energy Cannon Advanced Beam Cannon Ballistic Gun Improved Assault Rifle Ballistic Cannon Siege Cannon Launcher Grenade Launcher Special Weapon CPS Tube Impact Weapon Shock Maul Slashing Weapon Companion Sword Build | -11 -10 -10 -9 -9 -9 -9 ------- Run | Yrd Mat Min Mat Sto Rec Scr Slots Evolved 2 | . . . 2 . . . Power . | . . . . . . . Propulsion . | . . . . . . . Utility 1 | . . . 1 . . . Weapon 1 | . . . 1 . . . Parts Attached 68 | . 4 2 34 13 6 9 Power 9 | . 1 . 6 1 1 . Engine 8 | . 1 . 6 1 . . Core . | . . . . . . . Reactor 1 | . . . . . 1 . Propulsion 15 | . 1 . 10 2 . 2 Treads 11 | . . . 9 2 . . Leg 1 | . 1 . . . . . Wheel 3 | . . . 1 . . 2 Hover . | . . . . . . . Flight . | . . . . . . . Utility 24 | . 2 1 11 4 3 3 Device 9 | . 2 . 3 . 2 2 Storage 3 | . . . 2 . . 1 Processor 2 | . . . 1 . 1 . Hackware . | . . . . . . . Protection 10 | . . 1 5 4 . . Artifact . | . . . . . . . Weapon 20 | . . 1 7 6 2 4 Energy Gun 4 | . . . 1 2 1 . Energy Cannon 3 | . . . 1 1 1 . Ballistic Gun 6 | . . 1 5 . . . Ballistic Cannon 2 | . . . . . . 2 Launcher 1 | . . . . 1 . . Special Weapon 2 | . . . . 1 . 1 Impact Weapon 1 | . . . . 1 . . Slashing Weapon 1 | . . . . . . 1 Piercing Weapon . | . . . . . . . Special Melee Weapon . | . . . . . . . Unidentified Prototypes 13 | . . . 5 3 3 2 Parts Lost 9 | . 1 2 3 2 . 1 Power 3 | . 1 1 1 . . . Propulsion 3 | . . 1 . 1 . 1 Utility 2 | . . . 2 . . . Weapon 1 | . . . . 1 . . Highest Loss Streak 2 | . 1 2 2 1 . 1 To Critical Strikes . | . . . . . . . Average Backups 22 | . 7 8 18 24 24 24 Power 1 | . 1 1 1 2 2 2 Propulsion 8 | . 4 5 8 10 10 8 Utility 5 | . . 1 3 6 5 6 Weapon 5 | . 1 1 4 6 7 6 Tool/Special . | . . . . . . . Unused Backups 39 | . . 3 12 3 2 19 Power 3 | . . . 1 1 . 1 Propulsion 11 | . . 1 6 . . 4 Utility 10 | . . . 2 1 . 7 Weapon 11 | . . 2 3 1 2 3 Tool/Special 4 | . . . . . . 4 Average Slot Usage (%) 90 | . 97 80 98 99 99 78 Engine 5 | . 14 3 10 11 5 . Reactor 5 | . . . . . 5 11 Treads 19 | . . . 17 21 22 19 Wheel 1 | . . . 3 . . 2 Device 10 | . 11 11 10 11 11 11 Storage 11 | . 14 14 11 11 11 11 Protection 10 | . . 2 10 11 11 11 Energy Gun 5 | . 28 20 . 8 10 3 Energy Cannon 12 | . . . 10 20 21 7 Ballistic Gun 6 | . . 7 22 3 . . Peak Build Rating 42 | . 7 7 26 31 42 42 Average Rating 27 | . 6 5 21 27 32 30 On Entrance 14 | 6 6 7 5 25 28 26 Avg Prop Armor Cover (%) 3 | . . . 3 . . . Naked Turns . | . . . . . . . Heaviest Build 115 | 10 13 13 102 109 107 115 Greatest Support 46 | 20 20 20 46 46 43 43 Greatest Overweight (x) 33 | . . . 33 4 2 4 Average Overweight (x) 1 | . . . 1 2 2 2 Largest Inventory Capacity 25 | . 8 8 25 25 25 25 Average Capacity 23 | . 8 8 20 25 25 25 Most Carried 25 | . 8 8 25 25 25 25 Average Carried 22 | . 7 8 18 24 24 24 Final Capacity 25 | 8 8 8 25 25 25 25 Final Carried 25 | 6 8 8 25 25 25 25 Class Distribution -------------------- 44% | Tank 25% | Commander-Mutant 22% | Commander-Tank 3% | Mutant Dominant Class ---------------- Mutant | -10/Materials Mutant | -10/Mines Tank | -9/Materials Tank | -9/Storage Tank | -9/Recycling Commander-Mutant | -9/Scraptown Resources | -11 -10 -10 -9 -9 -9 -9 ----------- Run | Yrd Mat Min Mat Sto Rec Scr Matter Collected 2227 | 175 55 20 1260 391 276 50 Remotely . | . . . . . . . Salvage Created 4715 | . 224 52 2292 1020 698 429 Parts 278 | . 8 6 160 50 31 23 Haulers Intercepted 12 | . 1 . 6 5 . . Recyclers Shooed 6 | . . . 1 2 3 . Parts Field Recycled . | . . . . . . . Retrieved Matter . | . . . . . . . Parts Self-Destructed . | . . . . . . . Prevented . | . . . . . . . Parts Restored . | . . . . . . . Kills | -11 -10 -10 -9 -9 -9 -9 ------- Run | Yrd Mat Min Mat Sto Rec Scr Combat Hostiles Destroyed 73 | . 4 3 43 13 8 2 Guns 41 | . 4 3 23 7 4 . Cannons 29 | . . . 17 6 4 2 Classes Destroyed 14 | . 3 1 7 1 . 2 Worker 7 | . . . 5 2 . . Builder 2 | . . . 2 . . . Hauler 12 | . 1 . 6 5 . . Recycler 4 | . . . . 2 2 . Operator 3 | . . . 2 1 . . Watcher 6 | . 1 . 5 . . . Swarmer 13 | . . 3 7 2 1 . Grunt 34 | . 4 . 22 7 1 . Brawler 3 | . . . 2 . 1 . Duelist 2 | . . . 1 . 1 . Protector 1 | . . . 1 . . . Sentry 18 | . . . 10 4 4 . Explorer 1 | . . . . . . 1 Scrapper 1 | . . . . . . 1 Best Kill Streak 6 | . 4 3 6 3 4 2 Combat Bots Only 6 | . 3 3 6 2 4 2 Max Kills in Single Turn 2 | . 1 1 2 2 1 2 Gunslinging 1 | . . . 1 . . . Exploded . | . . . . . . . Melee . | . . . . . . . Uniques/NPCs Destroyed 1 | . . . . . 1 . 01-MTF (-9/Recycling) Combat | -11 -10 -10 -9 -9 -9 -9 -------- Run | Yrd Mat Min Mat Sto Rec Scr Hostile Shots Fired 320 | . 50 24 152 56 16 22 Missed 78 | . 6 11 40 15 2 4 Hits 242 | . 44 13 112 41 14 18 Melee 6 | . . . 3 . 3 . Projectile 236 | . 44 13 109 41 11 18 Critical Strikes 11 | . 2 . 6 1 1 1 Part Disruptions 1 | . . . . . 1 . Damage Taken 3444 | . 532 102 1455 605 258 492 Core 672 | . 179 54 173 106 8 152 Absorbed by Shields 68 | . . . . . . 68 Regen/Repaired (Parts) 397 | . . . 203 194 . . Core Remaining (%) 53 | 100 . 6 . . . . Volleys Fired 211 | . 23 7 116 38 19 8 Largest 3 | . 2 2 3 3 3 1 Hottest 196 | . 80 80 114 196 196 68 Shots Fired 577 | . 46 14 338 116 54 9 Gun 373 | . 46 14 240 54 19 . Cannon 202 | . . . 98 62 35 7 Launcher . | . . . . . . . Special 2 | . . . . . . 2 Kinetic 269 | . . . 235 29 . 5 Thermal 262 | . 46 14 103 62 35 2 Explosive . | . . . . . . . Electromagnetic 44 | . . . . 25 19 . Robot Hit Streak 14 | . 7 2 14 13 10 1 Robot Miss Streak 9 | . 2 9 5 4 2 3 Penetration Max 2 | . . . . . . 2 Secondary Targets 3 | . 1 . 1 1 . . Max Gunslinging Chain 1 | . 1 . 1 1 . . Shots Hit Robots 344 | . 35 3 202 68 28 8 Core Hits 150 | . 13 3 85 27 17 5 Critical Kills 4 | . . . 4 . . . Critical Parts Destroyed . | . . . . . . . Critical Strikes 4 | . . . 4 . . . Meltdown 3 | . . . 3 . . . Destroy 1 | . . . 1 . . . Melee Attacks 10 | . . . . . 2 8 Impact 4 | . . . . . 2 2 Slashing 6 | . . . . . . 6 Piercing . | . . . . . . . Sneak Attacks . | . . . . . . . Combat Hostiles . | . . . . . . . Follow-up Attacks . | . . . . . . . Damage Inflicted 7054 | . 399 51 3405 1525 725 949 Guns 3448 | . 391 51 2031 690 285 . Cannons 2793 | . . . 1261 736 361 435 Explosions . | . . . . . . . Melee 514 | . . . . . . 514 Ramming 299 | . 8 . 113 99 79 . Kinetic 2810 | . . . 2000 375 . 435 Thermal 2831 | . 391 51 1292 736 361 . Explosive . | . . . . . . . Electromagnetic 600 | . . . . 315 285 . Impact . | . . . . . . . Slashing 514 | . . . . . . 514 Piercing . | . . . . . . . Highest Corruption 8 | . . . 8 8 8 . Average Corruption 7 | . . . 7 8 8 . Corruption Purged . | . . . . . . . Corruption Blocked . | . . . . . . . Effects 323 | . . . 142 84 97 . Message Errors 73 | . . . 30 17 26 . Matter Fused 85 | . . . 36 20 29 . Heat Flow Errors 35 | . . . 17 9 9 . Energy Discharges 33 | . . . 12 9 12 . Parts Rejected 3 | . . . 2 1 . . Parts Fused 3 | . . . 2 1 . . Data Loss (minor) 37 | . . . 14 11 12 . Data Loss (major) 15 | . . . 6 5 4 . Misfires 17 | . . . 9 6 2 . Alerts 8 | . . . 5 2 1 . Weapon Failures 14 | . . . 9 3 2 . Overload Shots . | . . . . . . . Overflow Damage 164 | . . . 6 1 10 147 Projectiles 147 | . . . 6 1 10 130 Explosions . | . . . . . . . Melee 17 | . . . . . . 17 Knockbacks 4 | . . . . 2 1 1 Impact 3 | . . . . 2 1 . Kinetic 1 | . . . . . . 1 Secondary . | . . . . . . . Self-Inflicted Damage . | . . . . . . . Shots . | . . . . . . . Rammed 34 | . . . 13 11 10 . Targets Rammed 41 | . 5 . 14 12 10 . Kicked 5 | . 5 . . . . . Crushed 2 | . . . 1 1 . . Highest Temperature 456 | . 299 . 261 406 456 218 Average Temperature 88 | . 136 . 56 115 112 77 Received Heat Transfer 1278 | . 330 . 645 231 18 54 Effects 8 | . . . 4 3 1 . Energy Bleed 2 | . . . 1 . 1 . Interference 6 | . . . 3 3 . . Siege Activations . | . . . . . . . Martial Activations . | . . . . . . . Shielding Activations . | . . . . . . . Robots Disrupted . | . . . . . . . Combat Hostiles . | . . . . . . . Robots Corrupted . | . . . . . . . Combat Hostiles . | . . . . . . . Parts Fried 1 | . . . . 1 . . Impact Corruptions . | . . . . . . . Robots Melted 3 | . . . 3 . . . Combat Hostiles 3 | . . . 3 . . . Parts Melted 10 | . 3 . 6 1 . . Heat Transferred 5378 | . 875 125 2324 1332 722 . Parts Sabotaged . | . . . . . . . Parts Stolen . | . . . . . . . Parts Stripped . | . . . . . . . Power Chain Reactions . | . . . . . . . Alert | -11 -10 -10 -9 -9 -9 -9 ------- Run | Yrd Mat Min Mat Sto Rec Scr Maximum Alert Level 2 | . . . 2 1 . . Low Security (%) 64 | . 100 100 27 81 100 . Level 1 15 | . . . 26 18 . . Level 2 19 | . . . 45 . . . Level 3 . | . . . . . . . Level 4 . | . . . . . . . Level 5 . | . . . . . . . High Security . | . . . . . . . Max Security . | . . . . . . . Peak Influence 618 | . 87 50 618 260 104 . Initial 260 | . . 25 . 260 28 . Average 189 | . 21 19 334 150 26 . Influence Increases 2683 | . 144 70 1358 681 430 . Destroy 0b10 Robot/C 1480 | . 80 60 840 340 160 . Destroy 0b10 Robot/NC 195 | . 10 . 105 50 30 . Destroy Leader 386 | . 24 10 242 110 . . Allied During Kill 64 | . . . . 57 7 . Successful Hack 68 | . . . 31 16 21 . Select Force Hacks 240 | . . . 30 . 210 . Disable Machine 105 | . . . 45 60 . . Destroy Structure 10 | . . . 5 3 2 . Lose Combat Pursuer 135 | . 30 . 60 45 . . Influence Decreases 2683 | . 77 137 740 1226 503 . Entered New Map 445 | . . 42 . 358 45 . Time Decay 1993 | . 77 80 710 668 458 . Lost Part 65 | . . 15 30 20 . . Lost Ally 180 | . . . . 180 . . Squads Dispatched 13 | . 1 . 7 5 . . Investigation 8 | . 1 . 4 3 . . Extermination . | . . . . . . . Reinforcement 4 | . . . 2 2 . . Assault 1 | . . . 1 . . . Garrison . | . . . . . . . Intercept . | . . . . . . . Searches Triggered . | . . . . . . . Construction Impeded . | . . . . . . . Haulers Reinforced . | . . . . . . . Active Scanning Responses . | . . . . . . . Cargo Convoy Interrupts . | . . . . . . . Stealth | -11 -10 -10 -9 -9 -9 -9 --------- Run | Yrd Mat Min Mat Sto Rec Scr Distress Signals 6 | . . . 4 2 . . Communications Jammed . | . . . . . . . Distress Signals . | . . . . . . . Times Spotted 132 | . 11 3 65 35 8 10 Peak Tracking Total 11 | . 5 3 9 4 4 11 Tactical Retreats 8 | . 1 . 3 3 . 1 Traps | -11 -10 -10 -9 -9 -9 -9 ------- Run | Yrd Mat Min Mat Sto Rec Scr Traps Triggered 7 | . 1 . 4 2 . . Indirectly . | . . . . . . . Trap Hack Attempts . | . . . . . . . Triggered . | . . . . . . . Disarmed . | . . . . . . . Reprogrammed . | . . . . . . . Reused . | . . . . . . . Traps Extracted . | . . . . . . . Installed . | . . . . . . . Triggered . | . . . . . . . Machines | -11 -10 -10 -9 -9 -9 -9 ---------- Run | Yrd Mat Min Mat Sto Rec Scr Machines Disabled 9 | . . . 4 4 . 1 Max in Single Turn 1 | . . . 1 1 . 1 Garrison Access 1 | . . . . 1 . . Machines Repaired . | . . . . . . . Machines Dismantled . | . . . . . . . Machines Sabotaged . | . . . . . . . Overloaded Fab Kills . | . . . . . . . Hacking | -11 -10 -10 -9 -9 -9 -9 --------- Run | Yrd Mat Min Mat Sto Rec Scr Machines Accessed 43 | . 1 . 13 11 14 4 Terminals 24 | . 1 . 10 7 6 . Fabricators . | . . . . . . . Repair Stations 3 | . . . 1 2 . . Recycling Units 10 | . . . 1 1 8 . Scanalyzers 1 | . . . 1 . . . Garrison Access 1 | . . . . 1 . . Total Hacks 122 | . 4 . 46 29 36 7 Successful 77 | . 2 . 27 19 22 7 Failed 44 | . 2 . 18 10 14 . Catastrophic 4 | . . . 4 . . . Database Lockouts 1 | . . . 1 . . . Manual 73 | . 4 . 29 16 24 . Terminals 80 | . 4 . 37 21 18 . Fabricators . | . . . . . . . Repair Stations 10 | . . . 5 5 . . Recycling Units 22 | . . . 2 2 18 . Scanalyzers 2 | . . . 2 . . . Garrison Access 1 | . . . . 1 . . Terminal Hacks 24 | . . . 8 6 3 7 Record 5 | . . . . . . 5 Robot Analysis 5 | . . . . 2 3 . Prototype ID Bank 2 | . . . 2 . . . Open Door 3 | . . . . 2 . 1 Branch Access Points 1 | . . . 1 . . . Alert Level 3 | . . . 1 2 . . Locate Traps 1 | . . . 1 . . . Dispatch Records 1 | . . . 1 . . . Hauler Manifests 1 | . . . 1 . . . Zone Layout 1 | . . . 1 . . . Proto ID Catalog 1 | . . . . . . 1 Fabricator Hacks . | . . . . . . . Repair Station Hacks 7 | . . . 3 4 . . Scan Component 4 | . . . 2 2 . . Repair 3 | . . . 1 2 . . Recycling Unit Hacks 5 | . . . 1 . 4 . Retrieve Components 5 | . . . 1 . 4 . Scanalyzer 1 | . . . 1 . . . Retrieve Study 1 | . . . 1 . . . Garrison Access Hacks 1 | . . . . 1 . . Seal Access 1 | . . . . 1 . . Unauthorized Hacks 39 | . 2 . 14 8 15 . Terminals 28 | . 2 . 12 6 8 . Botnet 12 | . 1 . 5 3 3 . Operators 1 | . . . 1 . . . Skim 15 | . 1 . 6 3 5 . Fabricators . | . . . . . . . Repair Stations 1 | . . . 1 . . . Patch 1 | . . . 1 . . . Recycling Units 10 | . . . 1 2 7 . Reject 1 | . . . . 1 . . Recyclers 1 | . . . . 1 . . Tunnel 8 | . . . 1 . 7 . Scanalyzers . | . . . . . . . Garrison Access . | . . . . . . . Data Cores Recovered . | . . . . . . . Used . | . . . . . . . Hacking Detections 32 | . 1 . 13 8 10 . Full Trace Events 7 | . . . 4 1 2 . Feedback Events . | . . . . . . . Feedback Blocked . | . . . . . . . Robot Schematics Acquired . | . . . . . . . Robots Built . | . . . . . . . Authchips . | . . . . . . . Time . | . . . . . . . Total Robot Build Rating . | . . . . . . . Part Schematics Acquired . | . . . . . . . Parts Built . | . . . . . . . Authchips . | . . . . . . . Time . | . . . . . . . Total Part Build Rating . | . . . . . . . Part Studies Acquired 1 | . . . 1 . . . Parts Repaired 3 | . . . 1 2 . . Time 163 | . . . 51 112 . . Parts Recycled . | . . . . . . . Recycled Matter . | . . . . . . . Retrieved Matter . | . . . . . . . Retrieved Components 18 | . . . 9 . 9 . Parts Scanalyzed . | . . . . . . . Part Schematics Acquired . | . . . . . . . Parts Damaged . | . . . . . . . Bothacking | -11 -10 -10 -9 -9 -9 -9 ------------ Run | Yrd Mat Min Mat Sto Rec Scr Used RIF Installer . | . . . . . . . Robots Hacked . | . . . . . . . Non-combat . | . . . . . . . Combat . | . . . . . . . Robot Hacks Applied . | . . . . . . . Relay Couplers Released . | . . . . . . . Fabnet Peak Effective % . | . . . . . . . Robots Rewired 16 | . . . . . 16 . Allies Hacked . | . . . . . . . Hacks Repelled . | . . . . . . . Allies | -11 -10 -10 -9 -9 -9 -9 -------- Run | Yrd Mat Min Mat Sto Rec Scr Total Allies 26 | . . . . 10 16 . Largest Group 16 | . . . . 10 16 16 Highest-Rated Group 210 | . . . . 88 210 210 Highest-Rated Ally 27 | . . . . 16 27 27 Total Orders 14 | . . . . . . 14 STAY 12 | . . . . . . 12 FOLLOW 2 | . . . . . . 2 Ally Attacks 95 | . . . . 52 4 39 Total Damage 1074 | . . . . 422 37 615 Kills 10 | . . . . 4 2 4 Allies Corrupted . | . . . . . . . Allies Melted 1 | . . . . . . 1 Intel | -11 -10 -10 -9 -9 -9 -9 ------- Run | Yrd Mat Min Mat Sto Rec Scr Active Infowar (turns) 596 | . 205 . 390 . . 1 Optics 390 | . . . 390 . . . Sensors 205 | . 205 . . . . . Terrain 1 | . . . . . . 1 Robot Analysis Total 5 | . . . . 2 3 . Derelict Logs Recovered . | . . . . . . . Drone Launches . | . . . . . . . Drone Recoveries . | . . . . . . . Exploration | -11 -10 -10 -9 -9 -9 -9 ------------- Run | Yrd Mat Min Mat Sto Rec Scr Turns Passed 17380 | . 351 185 4602 2576 2911 6755 Spaces Moved 6195 | 1 194 130 1541 843 922 2564 Core 3 | . . . 3 . . . Treads 5397 | . . . 1489 843 922 2143 Legs 364 | 1 194 130 39 . . . Wheels 431 | . . . 10 . . 421 Hover . | . . . . . . . Flight . | . . . . . . . Fastest Speed 95 | 120 120 120 95 240 280 135 Average Speed 253 | 120 120 120 253 265 280 256 Slowest Speed 1700 | 120 120 120 1700 320 280 280 Overloaded Moves . | . . . . . . . Propulsion Burnouts . | . . . . . . . Robots Hopped . | . . . . . . . Potential Cave-ins . | . . . . . . . Cave-ins Triggered . | . . . . . . . Exploration Rate (%) 65 | 1 35 39 98 96 99 88 Regions Visited 6 Branch Regions 4 Pre-discovered Areas 12 | . . . 2 . 10 . Known Exits Taken 2 | . . . 1 . 1 . Unknown Exits Taken 4 | 1 1 1 . 1 . . Scrap Searched 10 | . . 2 . . . 8 Spaces Dug 3 | . . . . . 3 . Terrain Destroyed 8 | . . . . . 3 5 Melee 2 | . . . . . 2 . Projectile 6 | . . . . . 1 5 AOE . | . . . . . . . Terrain Rammed . | . . . . . . . Walls Destroyed . | . . . . . . . Machines Disabled . | . . . . . . . Actions | -11 -10 -10 -9 -9 -9 -9 --------- Run | Yrd Mat Min Mat Sto Rec Scr Total 7359 | . 264 144 1965 1083 1189 2714 Wait 517 | . 33 4 204 154 43 79 Move 6189 | . 193 129 1540 842 921 2564 Hop . | . . . . . . . Pick Up 58 | . 4 1 27 8 2 16 Fast Attach 15 | . 1 . 11 2 . 1 Attach 12 | . 1 . 3 3 . 5 Detach 5 | . . . . . 3 2 Swap 71 | . 2 2 27 15 10 15 Drop 56 | . 2 1 23 9 5 16 Fire 211 | . 23 7 116 38 19 8 Melee 9 | . . . . . 2 7 Ram . | . . . . . . . Kick 5 | . 5 . . . . . Crush 36 | . . . 14 12 10 . Escape Stasis . | . . . . . . . Rewire 175 | . . . . . 174 1 Trap . | . . . . . . . Miscellaneous . | . . . . . . . Route ------- -11/Scrapyard -10/Materials -10/Mines -9/Materials (discovered 5 exits: [*Mat x3] / *Min / *Sto) -9/Storage (discovered 2 exits: [*Mat] / *Rec) -9/Recycling (discovered 2 exits: [*Fac] / *Scr) -9/Scraptown (discovered 1 exit: [*Fac]) History --------- Turn | Location | Event 1 | -11/Scrapyard | Discovered new exit (range 0) 1 | -11/Scrapyard | Entered Materials 147 | -10/Materials | Discovered new exit (range 15) 232 | -10/Materials | Core integrity fell below 50% 303 | -10/Materials | Build established: Mutant 352 | -10/Materials | Entered Mines 403 | -10/Mines | Core integrity fell below 20% 531 | -10/Mines | Discovered new exit (range 5) 537 | -10/Mines | Entered Materials 537 | -9/Materials | Evolved 2 slots: Utility x1, Weapon x1 848 | -9/Materials | Build established: Tank 858 | -9/Materials | Discovered new exit (range 14) 1226 | -9/Materials | Build established: Scavenger-Tank 1446 | -9/Materials | Discovered new exit (range 11) 1571 | -9/Materials | Build established: Tank 1818 | -9/Materials | Discovered new exit (range 10) 2134 | -9/Materials | Central database locked down 3337 | -9/Materials | First assault squad dispatched 3451 | -9/Materials | Discovered new exit (range 12) 3935 | -9/Materials | Discovered new exit (range 5) 4761 | -9/Materials | Repaired Adv. Beam Cannon 4799 | -9/Materials | Learned Storage non-interactive machine intel 4890 | -9/Materials | Learned Storage emergency access door positions 4949 | -9/Materials | Loaded intel: 10 trap records 5090 | -9/Materials | Identified exit to Mines 5090 | -9/Materials | Identified exit to Storage 5139 | -9/Materials | Entered Storage 5141 | -9/Storage | Loaded intel: 27 non-interactive machine locations 5349 | -9/Storage | Core integrity fell below 50% 5732 | -9/Storage | Met 01-MTF 6105 | -9/Storage | Assisted by bots powering up and referring to "LRC-V3" 6405 | -9/Storage | Build established: Commander-Tank 6484 | -9/Storage | Lost 5 allies 6744 | -9/Storage | Build established: Tank 6784 | -9/Storage | Discovered new exit (range 8) 6875 | -9/Storage | Repaired Imp. Treads+ 7243 | -9/Storage | Discovered new exit (range 11) 7319 | -9/Storage | Lost 3 allies 7348 | -9/Storage | Repaired Imp. Lightning Gun 7715 | -9/Storage | Entered Recycling 7715 | -9/Recycling | Accompanied by 2 allies (01-MTF) 8616 | -9/Recycling | Discovered new exit (range 16) 9106 | -9/Recycling | Learned location of Storage (-9) 9139 | -9/Recycling | Scanned before Scraplab entrance 9171 | -9/Recycling | Destroyed 01-MTF 9179 | -9/Recycling | Learned Storage emergency access door positions 9208 | -9/Recycling | Found Prototype Energy Gun 9208 | -9/Recycling | Identified KN-7UR's Autopenetrator 9241 | -9/Recycling | Learned location of Zion (-7) 9294 | -9/Recycling | Learned Materials repair station intel 9372 | -9/Recycling | Identified exit to Scraptown 9397 | -9/Recycling | Learned location of 1 exit from Recycling 9434 | -9/Recycling | Learned location of 3 exits from Materials 9481 | -9/Recycling | Learned location of 1 exit from Storage 9536 | -9/Recycling | Learned Storage terminal intel 9649 | -9/Recycling | Build established: Commander-Tank 10559 | -9/Recycling | Entered Scraplab 10626 | -9/Recycling | Entered Scraptown 10626 | -9/Scraptown | Accompanied by 16 allies 10626 | -9/Scraptown | System corruption cleaned by C-Scrubber 10853 | -9/Scraptown | Build established: Commander-Mutant 11014 | -9/Scraptown | Heard Great Nut preacher, LISTEN AND RECITE! 11026 | -9/Scraptown | Visited Cyclists 11059 | -9/Scraptown | Visited Awakened 11082 | -9/Scraptown | Visited TADAMA 11124 | -9/Scraptown | Visited Bundlers 11177 | -9/Scraptown | Visited Red Mages 11227 | -9/Scraptown | Visited IN-MT5's Study 11443 | -9/Scraptown | Discovered new exit (range 11) 12456 | -9/Scraptown | Visited UFD Registry 12456 | -9/Scraptown | Registered with UFD as "Alphasink" 12577 | -9/Scraptown | Visited Junk Repository 12666 | -9/Scraptown | Visited Abandonware Association 12697 | -9/Scraptown | Learned abandonware demo "REBOOT5.EXE" 12829 | -9/Scraptown | Visited Research Penetration Think Tank 12902 | -9/Scraptown | Visited Scrap Suit Storage 12958 | -9/Scraptown | Visited Chapter 10 13115 | -9/Scraptown | Visited Sword Containment 13157 | -9/Scraptown | Visited DA-N13 Charitable Foundation 13188 | -9/Scraptown | Found DCF Scrap (26 items) 13244 | -9/Scraptown | Visited LU-1G1's Boring Crew 13600 | -9/Scraptown | Visited Supply Room 13653 | -9/Scraptown | Visited Science Guys 13953 | -9/Scraptown | Found Prototype Slashing Weapon 14897 | -9/Scraptown | Identified Companion Sword 15200 | -9/Scraptown | Build established: Commander-Tank 17181 | -9/Scraptown | Met Optimus 17181 | -9/Scraptown | Accepted into 0bPrime 17287 | -9/Scraptown | Civil war broke out across Scraptown 17333 | -9/Scraptown | Attached CPS modules to Triborg. 17335 | -9/Scraptown | Attached CPS modules to Triborg. 17340 | -9/Scraptown | Attacked by Scraptown defenders 17358 | -9/Scraptown | Found Prototype Ballistic Cannon 17358 | -9/Scraptown | Identified Siege Cannon 17362 | -9/Scraptown | Found Tri-treads 17365 | -9/Scraptown | Found Siege Articulator 17374 | -9/Scraptown | Core integrity fell below 20% 17381 | -9/Scraptown | Core destroyed Last Messages --------------- 17366_ Engineer 2c destroyed. 17368_ Penetrated by Slug. 17371_ Slug penetrates Wall. 17373_ Siege Cannon recoils violently, damaging core (-46). 17373_ Siege Slug penetrates Wall. 17373_ Destroyed Lgt. Ion Engine. 17373_ 9R-5DU(x) knocked back. 17374_ Wheel destroyed. 17374_ Penetrated by Slug. 17374_ Slug penetrates Earth. 17375_ Siege Cannon recoils violently, damaging core (-20). 17376_ Excavator 2a destroyed. 17377_ Penetrated by Slug. 17379_ Siege Slug penetrates 79-5JP(j). 17379_ 79-5JP(j) destroyed. 17379_ Siege Slug penetrates 9R-5DU(x). 17379_ Destroyed VSS Leg. 17379_ 9R-5DU(x) destroyed. 17379_ Siege Slug penetrates Wall. 17380_ Slug penetrates Wall. Map ----- +----------------------------------------------------+ | "" " ######?#####????"#""??????????????#""""""" | | " #??????"""""???? X ???????????????# " " | | """"" #?#" ?? "???? ???????????????# | | ##### #?#" "#??? ???????????????# "# #" | | ????# #?#" """ "#???# #???????????????# "#X#" | | ##### #?#" """ "#?### ########????????# "###" | | #?#" """ "#?#" "#????????# """"" | | #??? "#?#" X#????????# | | ##### #????? "#?#" "#????????# | | ???# #??????? "#?# #????????##### ## | | ##### ########## ##### ;#########???????##### ## | | # #???????#"""" "" | | # #???????#" | | # #???????#" | | # #???????#" | | # % #???????#" | | # #### ###########"!* #???#####" | | # #? ?????????#%p #???#"""" " | | # ## ???????;x #???#"""" " | | # ## ???##; #???#"""" " | | ## #??# # #???#"""" " | | # ## """" #??? ; #???#"""" " | | # ## """"" #???#; ! ###?#"""" " | | ### ## """"" #???#; !% ""#"#"""" " | | ??# ## #???#; %| """"#"""" " | | ??# ## ?????#???#;@ ""#######" " | | ??# ######?????????#; ###?????#" " | | ??# #??????????????## i #########" " | | ??# #???????????????# ! " | | ??# #???????????????# *==* = " | | ?# #???????????????# %!*!!% % " | | ?# #???????????????# !!!!!!= " | | # ################# !!!=%%/%! *%= " | | # =/=!!//=%! % " | | *[!!*=% %/[ " | | " # =%!%3%%=%* ! | | ""# u ! !=! | | ### *= | | !%= #""""#" | | % ! #????#" | | ! #????#"""""" | | ############ ##"#### ########## "###????####### | | #?????????""""#??# #??# ##???????# | | #??????? #??#" """#??# #????????# | | #?????""" "#??#" " #??# #????????# # | | #?????"##" "#??#"" " #??# #????????#! # ! | | #???????# ???#""" " #??# !#????????# /#=[! | | #??????? """ ???#"" " #??# !%#????????####### | | #?????? ##" ???#" "###??# #??????????????? | | #????? "?#" ???#" " #??# #??????????????? | +----------------------------------------------------+ Best States ------------- Heat Dissipation 56 Energy Generation 21 Energy Capacity 280 Matter Stores 300 Matter Capacity 300 Sight Range 18 Robot Scan Range 14 Terrain Scan Density 10 Additional Mass Support 6 Armor Coverage 225 Evasion (%) 55 Recoil Reduction 2 Item Schematics ----------------- None Robot Schematics ------------------ None Fabricated ------------ Nothing Repaired ---------- Adv. Beam Cannon | 11% | -9/Materials Imp. Treads | 13% | -9/Storage Imp. Lightning Gun | 33% | -9/Storage Studied --------- Imp. Treads | -9/Materials | Hacked Alien Tech Used ----------------- None Achievements -------------- None Challenges ------------ None Game ------ Seed ArcsightMultinovaSteel Manual? 0 Play Time 00:57:08 Cumulative 273.2 hours Start 2026.01.06 @ 20:20:26 End 2026.01.06 @ 21:25:56 Sessions 1 Manual Loads 0 Difficulty Rogue Special Mode None Game No. 350 Rogue 349 Adventurer 1 Explorer 0 Win Type - Total 2 Types 1/0/0/1/0/0/0/0/0/0 Lore% 74 Gallery% 67 Achievement% 56 Wizard Run 0 Options --------- Layout 0 ASCII 0 Keyboard 0 Movement Numpad Keybinds 0 Fullscreen 1 Font 24/Smallcaps Map View 76x50 Zoom Use 0% Tactical HUD 1 Map Filters NONE Filters NONE Steam 1 RUN: 35bd75a6-0a49-4c3e-a5ec-352354939c5e